[Event "European Womens-ch 2025"]
[Site "Rhodes"]
[Date "2025.04.04"]
[Round "5.49"]
[White "Piddubna, Bozhena"]
[Black "Bhatia, Kanishka"]
[Result "1-0"]
[Annotator "NA"]
[ECO "D35"]
[WhiteElo "2145"]
[BlackElo "2012"]
[PlyCount "147"]
[EventDate "2025.03.29"]
[EventType "swiss"]
[EventCountry "GRE"]
[SourceTitle "playchess.com"]
[Source "ChessBase"]
[SourceQuality "1"]
[TimeControl "40/5400+30:1800+30"]

1. d4 {[%emt 0:03:28]} Nf6 {[%emt 0:00:18]} 2. c4 {[%emt 0:00:08]} e6 {[%emt 0:00:07]} 3. Nc3 {[%emt 0:00:21]} d5 {[%emt 0:00:10]} 4. cxd5 {[%emt 0:00:17]} exd5 {[%emt 0:00:14]} 5. Bg5 {[%emt 0:00:09]} Be7 {[%emt 0:01:59]} 6. e3 {[%emt 0:01:08]} O-O {[%emt 0:01:59]} 7. Bd3 {[%emt 0:00:19]} Re8 {[%emt 0:01:46]} 8. Bxf6 {[%emt 0:20:04]} Bxf6 {[%emt 0:00:09]} 9. Qh5 {[%emt 0:00:05]} g6 {[%emt 0:00:07]} 10. Qxd5 {[%emt 0:00:53]} Bxd4 {[%emt 0:00:27]} 11. Nge2 {[%emt 0:01:55]} Bg7 {[%emt 0:03:09]} 12. Bc4 {[%emt 0:05:24]} Qe7 {[%emt 0:01:53]} 13. O-O {[%emt 0:05:02]} c6 {[%emt 0:13:31]} 14. Qd2 {[%emt 0:02:04]} Nd7 {[%emt 0:10:26]} 15. Nd4 {[%emt 0:06:18]} Ne5 {[%emt 0:00:58]} 16. Be2 {[%emt 0:03:34]} Be6 {[%emt 0:03:32]} 17. Nxe6 {[%emt 0:12:39]} Qxe6 {[%emt 0:00:35]} 18. Rfd1 {[%emt 0:01:22]} Nc4 {[%emt 0:05:11]} 19. Bxc4 {[%emt 0:07:36]} Qxc4 {[%emt 0:00:54]} 20. Rac1 {[%emt 0:01:18]} Re7 {[%emt 0:12:08]} 21. b3 {[%emt 0:02:42]} Qh4 {[%emt 0:01:23]} 22. Ne2 {[%emt 0:04:06]} Rae8 {[%emt 0:01:07]} 23. Rc4 {[%emt 0:07:19]} Qf6 {[%emt 0:06:16]} 24. Rd4 {[%emt 0:02:32]} h5 {[%emt 0:05:06]} 25. Rd3 {[%emt 0:01:17]} Bh6 {[%emt 0:09:38]} 26. Nd4 {[%emt 0:03:43]} Bg7 {[%emt 0:03:06]} 27. Nf3 {[%emt 0:01:17]} Qf5 {[%emt 0:07:00]} 28. h3 {[%emt 0:04:54]} Bf6 {[%emt 0:02:57]} 29. Rd6 {[%emt 0:01:15]} Re6 {[%emt 0:01:54]} 30. Rd7 {[%emt 0:00:55]} R6e7 {[%emt 0:00:20]} 31. Rd3 {[%emt 0:00:17]} g5 {[%emt 0:01:18]} 32. Nd4 {[%emt 0:01:12]} Qg6 {[%emt 0:00:41]} 33. Ne2 {[%emt 0:00:13]} Qf5 {[%emt 0:02:01]} 34. Ng3 {[%emt 0:00:26]} Qg6 {[%emt 0:00:01]} 35. Rd6 {[%emt 0:00:38]} Re6 {[%emt 0:00:56]} 36. Qe2 {[%emt 0:00:36]} g4 {[%emt 0:01:50]} 37. hxg4 {[%emt 0:00:04]} hxg4 {[%emt 0:00:09]} 38. Rxe6 {[%emt 0:00:25]} Rxe6 {[%emt 0:00:12]} 39. Qd3 {[%emt 0:01:21]} Qxd3 {[%emt 0:00:44]} 40. Rxd3 {[%emt 0:00:00]} Re8 {[%emt 0:00:00]} 41. Rd7 {[%emt 0:02:32]} Re7 {[%emt 0:09:05]} 42. Rxe7 {[%emt 0:03:48]} Bxe7 {[%emt 0:00:06]} 43. Nf5 {[%emt 0:00:03]} Bg5 {[%emt 0:02:41]} 44. Kh2 {[%emt 0:00:37]} Kh7 {[%emt 0:05:05]} 45. Kg3 {[%emt 0:00:26]} Kg6 {[%emt 0:00:16]} 46. Kxg4 {[%emt 0:00:08]} c5 {[%emt 0:01:01]} 47. Nd6 {[%emt 0:00:56]} f5+ {[%emt 0:00:50]} 48. Nxf5 {[%emt 0:00:22]} b5 {[%emt 0:00:27]} 49. Nd6 {[%emt 0:01:56]} a6 {[%emt 0:00:23]} 50. Kf3 {[%emt 0:01:51]} Be7 {[%emt 0:00:27]} 51. Nc8 {[%emt 0:00:16]} Bf8 {[%emt 0:00:32]} 52. Ke4 {[%emt 0:00:07]} a5 {[%emt 0:01:20]} 53. Na7 {[%emt 0:00:23]} c4 {[%emt 0:01:01]} 54. Nxb5 {[%emt 0:00:13]} cxb3 {[%emt 0:00:14]} 55. axb3 {[%emt 0:00:04]} Bb4 {[%emt 0:00:08]} 56. Kd5 {[%emt 0:00:18]} Kf6 {[%emt 0:00:10]} 57. e4 {[%emt 0:00:04]} Be1 {[%emt 0:00:07]} 58. f3 {[%emt 0:00:26]} Bg3 {[%emt 0:00:08]} 59. Nc3 {[%emt 0:00:09]} Be5 {[%emt 0:00:16]} 60. Ne2 {[%emt 0:00:04]} Bb2 {[%emt 0:00:08]} 61. f4 {[%emt 0:00:43]} Ke7 {[%emt 0:00:06]} 62. e5 {[%emt 0:00:24]} Kf7 {[%emt 0:00:15]} 63. f5 {[%emt 0:00:04]} Ke7 {[%emt 0:00:04]} 64. g4 {[%emt 0:00:09]} Kd7 {[%emt 0:00:05]} 65. f6 {[%emt 0:00:06]} a4 {[%emt 0:00:04]} 66. bxa4 {[%emt 0:00:03]} Ke8 {[%emt 0:00:04]} 67. Ke6 {[%emt 0:00:08]} Kf8 {[%emt 0:00:06]} 68. g5 {[%emt 0:00:04]} Kg8 {[%emt 0:00:07]} 69. g6 {[%emt 0:00:05]} Ba3 {[%emt 0:00:07]} 70. a5 {[%emt 0:00:08]} Bc5 {[%emt 0:00:04]} 71. a6 {[%emt 0:00:04]} Ba7 {[%emt 0:00:05]} 72. Kd7 {[%emt 0:00:05]} Be3 {[%emt 0:00:05]} 73. e6 {[%emt 0:00:05]} Bc5 {[%emt 0:00:06]} 74. Nf4 {[%emt 0:00:47]} 1-0

[Event "European Womens-ch 2025"]
[Site "Rhodes"]
[Date "2025.04.04"]
[Round "5.50"]
[White "Zaksaite, Salomeja"]
[Black "Kiousi, Panagiota"]
[Result "1/2-1/2"]
[Annotator "NA"]
[ECO "E14"]
[WhiteElo "2137"]
[BlackElo "1998"]
[PlyCount "97"]
[EventDate "2025.03.29"]
[EventType "swiss"]
[EventCountry "GRE"]
[SourceTitle "playchess.com"]
[Source "ChessBase"]
[SourceQuality "1"]
[TimeControl "40/5400+30:1800+30"]

1. d4 {[%emt 0:00:09]} Nf6 {[%emt 0:00:05]} 2. Nf3 {[%emt 0:00:04]} e6 {[%emt 0:00:09]} 3. e3 {[%emt 0:01:03]} b6 {[%emt 0:05:23]} 4. Bd3 {[%emt 0:02:47]} Bb7 {[%emt 0:00:15]} 5. O-O {[%emt 0:00:13]} Be7 {[%emt 0:01:24]} 6. b3 {[%emt 0:00:15]} O-O {[%emt 0:01:35]} 7. Bb2 {[%emt 0:00:07]} Ne4 {[%emt 0:03:42]} 8. c4 {[%emt 0:00:19]} f5 {[%emt 0:03:10]} 9. Nc3 {[%emt 0:00:18]} Nxc3 {[%emt 0:12:04]} 10. Bxc3 {[%emt 0:00:05]} Qe8 {[%emt 0:03:27]} 11. Qe2 {[%emt 0:09:24]} Qg6 {[%emt 0:08:26]} 12. Rfe1 {[%emt 0:10:44]} Be4 {[%emt 0:05:25]} 13. Bxe4 {[%emt 0:03:16]} fxe4 {[%emt 0:00:01]} 14. Ne5 {[%emt 0:00:52]} Qe8 {[%emt 0:04:52]} 15. Qg4 {[%emt 0:02:56]} c6 {[%emt 0:14:29]} 16. Qxe4 {[%emt 0:01:09]} d5 {[%emt 0:01:27]} 17. Qg4 {[%emt 0:00:13]} Bf6 {[%emt 0:00:23]} 18. Nd3 {[%emt 0:10:44]} h5 {[%emt 0:05:18]} 19. Qg3 {[%emt 0:02:23]} Nd7 {[%emt 0:01:43]} 20. e4 {[%emt 0:00:37]} dxc4 {[%emt 0:06:04]} 21. bxc4 {[%emt 0:00:32]} Nc5 {[%emt 0:04:49]} 22. Nxc5 {[%emt 0:15:09]} bxc5 {[%emt 0:00:07]} 23. dxc5 {[%emt 0:00:47]} h4 {[%emt 0:02:31]} 24. Qe3 {[%emt 0:02:10]} Bxc3 {[%emt 0:00:37]} 25. Qxc3 {[%emt 0:00:02]} Qh5 {[%emt 0:00:18]} 26. Qe3 {[%emt 0:02:58]} e5 {[%emt 0:04:47]} 27. Rad1 {[%emt 0:00:28]} Rf4 {[%emt 0:00:21]} 28. h3 {[%emt 0:09:53]} Raf8 {[%emt 0:00:26]} 29. Re2 {[%emt 0:06:39]} Rxf2 {[%emt 0:01:19]} 30. Rde1 {[%emt 0:11:19]} R2f4 {[%emt 0:01:41]} 31. Kh2 {[%emt 0:04:08]} Qf7 {[%emt 0:01:13]} 32. Qc3 {[%emt 0:00:34]} Qe7 {[%emt 0:00:47]} 33. Qe3 {[%emt 0:00:37]} Qe6 {[%emt 0:00:35]} 34. Rc2 {[%emt 0:01:20]} Qg6 {[%emt 0:02:41]} 35. Rd2 {[%emt 0:01:14]} R8f6 {[%emt 0:00:35]} 36. Ree2 {[%emt 0:00:50]} Rf1 {[%emt 0:00:48]} 37. Rd3 {[%emt 0:00:56]} Kh7 {[%emt 0:01:19]} 38. Rd6 {[%emt 0:00:51]} Rxd6 {[%emt 0:00:53]} 39. cxd6 {[%emt 0:00:04]} Qxd6 {[%emt 0:00:26]} 40. Rf2 {[%emt 0:00:00]} Qd1 {[%emt 0:00:00]} 41. Rxf1 {[%emt 0:01:03]} Qxf1 {[%emt 0:03:19]} 42. Qxa7 {[%emt 0:07:10]} Qf4+ {[%emt 0:00:44]} 43. Kg1 {[%emt 0:00:18]} Qxe4 {[%emt 0:00:25]} 44. Qc5 {[%emt 0:00:19]} Qe1+ {[%emt 0:03:29]} 45. Kh2 {[%emt 0:00:02]} Qg3+ {[%emt 0:00:06]} 46. Kg1 {[%emt 0:00:21]} Qe1+ {[%emt 0:00:18]} 47. Kh2 {[%emt 0:00:03]} Qg3+ {[%emt 0:01:03]} 48. Kg1 {[%emt 0:00:29]} Qe1+ {[%emt 0:00:47]} 49. Kh2 {[%emt 0:00:03]} 1/2-1/2

[Event "European Womens-ch 2025"]
[Site "Rhodes"]
[Date "2025.04.04"]
[Round "5.51"]
[White "Krkyasharyan, Sona"]
[Black "Dicen, Elis Denele"]
[Result "1/2-1/2"]
[Annotator "NA"]
[ECO "D37"]
[WhiteElo "1989"]
[BlackElo "2129"]
[PlyCount "101"]
[EventDate "2025.03.29"]
[EventType "swiss"]
[EventCountry "GRE"]
[SourceTitle "playchess.com"]
[Source "ChessBase"]
[SourceQuality "1"]
[TimeControl "40/5400+30:1800+30"]

1. d4 {[%emt 1:31:00]} d5 {[%emt 1:31:00]} 2. c4 {[%emt 0:00:30]} e6 {[%emt 0:00:30]} 3. Nc3 {[%emt 0:00:30]} Nf6 {[%emt 0:00:30]} 4. Nf3 {[%emt 0:00:30]} Be7 {[%emt 0:00:30]} 5. Bf4 {[%emt 0:00:30]} O-O {[%emt 0:00:30]} 6. e3 {[%emt 0:00:30]} c5 {[%emt 0:00:30]} 7. dxc5 {[%emt 0:00:30]} Bxc5 {[%emt 0:00:30]} 8. Qc2 {[%emt 0:00:30]} Nc6 {[%emt 0:00:30]} 9. a3 {[%emt 0:00:30]} Qa5 {[%emt 0:00:30]} 10. Rd1 {[%emt 0:00:30]} Re8 {[%emt 0:00:30]} 11. Nd2 {[%emt 0:00:30]} e5 {[%emt 0:00:30]} 12. Bg5 {[%emt 0:00:30]} Nd4 {[%emt 0:00:30]} 13. Qb1 {[%emt 0:00:30]} Bf5 {[%emt 0:00:30]} 14. Bd3 {[%emt 0:00:30]} Bxd3 {[%emt 0:00:30]} 15. Qxd3 {[%emt 0:00:30]} Ne4 {[%emt 0:00:30]} 16. Nxd5 {[%emt 0:00:30]} Nxg5 {[%emt 0:00:30]} 17. b4 {[%emt 0:00:30]} Qd8 {[%emt 0:00:30]} 18. bxc5 {[%emt 0:00:30]} Nde6 {[%emt 0:00:30]} 19. O-O {[%emt 0:00:30]} Nxc5 {[%emt 0:00:30]} 20. Qf5 {[%emt 0:00:30]} f6 {[%emt 0:00:30]} 21. h4 {[%emt 0:00:30]} Nf7 {[%emt 0:00:30]} 22. Ne4 {[%emt 0:00:30]} Nxe4 {[%emt 0:00:30]} 23. Qxe4 {[%emt 0:00:30]} Qc8 {[%emt 0:00:30]} 24. h5 {[%emt 0:00:30]} Qc6 {[%emt 0:00:30]} 25. Rb1 {[%emt 0:00:30]} Kh8 {[%emt 0:00:30]} 26. Rfd1 {[%emt 0:00:30]} Nd6 {[%emt 0:00:30]} 27. Qh4 {[%emt 0:00:30]} h6 {[%emt 0:00:30]} 28. Rbc1 {[%emt 0:00:30]} b6 {[%emt 0:00:30]} 29. e4 {[%emt 0:00:30]} Re6 {[%emt 0:00:30]} 30. Qg4 {[%emt 0:00:30]} Rae8 {[%emt 0:00:30]} 31. Rd3 {[%emt 0:00:30]} Nf7 {[%emt 0:00:30]} 32. c5 {[%emt 0:00:30]} bxc5 {[%emt 0:00:30]} 33. Rdc3 {[%emt 0:00:30]} Rd6 {[%emt 0:00:30]} 34. Rxc5 {[%emt 0:00:30]} Qa4 {[%emt 0:00:30]} 35. Qg6 {[%emt 0:00:30]} Rf8 {[%emt 0:00:30]} 36. Rc8 {[%emt 0:00:30]} Rdd8 {[%emt 0:00:30]} 37. Nxf6 {[%emt 0:00:30]} gxf6 {[%emt 0:00:30]} 38. Qxf6+ {[%emt 0:00:30]} Kg8 {[%emt 0:00:30]} 39. Qg6+ {[%emt 0:00:30]} Kh8 {[%emt 0:00:30]} 40. Rxd8 {[%emt 0:00:30]} Rxd8 {[%emt 0:00:30]} 41. Qxf7 {[%emt 0:30:30]} Rd1+ {[%emt 0:30:30]} 42. Rxd1 {[%emt 0:00:30]} Qxd1+ {[%emt 0:00:30]} 43. Kh2 {[%emt 0:00:30]} Qd2 {[%emt 0:00:30]} 44. Qe8+ {[%emt 0:00:30]} Kh7 {[%emt 0:00:30]} 45. Qxe5 {[%emt 0:00:30]} a5 {[%emt 0:00:30]} 46. Qf5+ {[%emt 0:00:30]} Kh8 {[%emt 0:00:30]} 47. e5 {[%emt 0:00:30]} a4 {[%emt 0:00:30]} 48. Qf8+ {[%emt 0:00:30]} Kh7 {[%emt 0:00:30]} 49. Qf7+ {[%emt 0:00:30]} Kh8 {[%emt 0:00:30]} 50. e6 {[%emt 0:00:30]} Qd6+ {[%emt 0:00:30]} 51. g3 {[%emt 0:00:30]} 1/2-1/2

[Event "European Womens-ch 2025"]
[Site "Rhodes"]
[Date "2025.04.04"]
[Round "5.52"]
[White "Tirpan, Ceren"]
[Black "Berke, Ana"]
[Result "1-0"]
[Annotator "NA"]
[ECO "A29"]
[WhiteElo "1996"]
[BlackElo "2119"]
[PlyCount "99"]
[EventDate "2025.03.29"]
[EventType "swiss"]
[EventCountry "GRE"]
[SourceTitle "playchess.com"]
[Source "ChessBase"]
[SourceQuality "1"]
[TimeControl "40/5400+30:1800+30"]

1. c4 {[%emt 0:00:08]} e5 {[%emt 0:00:12]} 2. g3 {[%emt 0:00:39]} Nf6 {[%emt 0:00:22]} 3. Bg2 {[%emt 0:00:06]} d5 {[%emt 0:00:16]} 4. cxd5 {[%emt 0:00:05]} Nxd5 {[%emt 0:00:06]} 5. Nc3 {[%emt 0:00:04]} Ne7 {[%emt 0:00:09]} 6. Nf3 {[%emt 0:00:07]} Nbc6 {[%emt 0:00:06]} 7. O-O {[%emt 0:02:03]} g6 {[%emt 0:00:06]} 8. b4 {[%emt 0:06:48]} a6 {[%emt 0:01:54]} 9. Bb2 {[%emt 0:01:42]} Bg7 {[%emt 0:00:36]} 10. a3 {[%emt 0:00:07]} O-O {[%emt 0:00:51]} 11. Rc1 {[%emt 0:02:56]} h6 {[%emt 0:01:59]} 12. d3 {[%emt 0:11:30]} Rb8 {[%emt 0:01:39]} 13. e3 {[%emt 0:10:28]} Be6 {[%emt 0:03:54]} 14. b5 {[%emt 0:05:27]} axb5 {[%emt 0:02:47]} 15. Nxb5 {[%emt 0:02:41]} Qd7 {[%emt 0:03:28]} 16. d4 {[%emt 0:06:28]} e4 {[%emt 0:21:31]} 17. Nd2 {[%emt 0:00:27]} f5 {[%emt 0:02:24]} 18. a4 {[%emt 0:07:19]} Nd5 {[%emt 0:04:39]} 19. Ba3 {[%emt 0:06:02]} Rfc8 {[%emt 0:01:57]} 20. Rb1 {[%emt 0:03:23]} Ra8 {[%emt 0:04:37]} 21. Qc2 {[%emt 0:12:23]} Nb6 {[%emt 0:04:32]} 22. Rfd1 {[%emt 0:05:23]} Bf7 {[%emt 0:06:27]} 23. Bf1 {[%emt 0:02:18]} Nxa4 {[%emt 0:04:32]} 24. Nc4 {[%emt 0:00:47]} Bd5 {[%emt 0:05:32]} 25. Ra1 {[%emt 0:00:33]} Kh7 {[%emt 0:03:04]} 26. Rdb1 {[%emt 0:00:18]} Bxc4 {[%emt 0:02:44]} 27. Qxc4 {[%emt 0:00:17]} Nb6 {[%emt 0:00:34]} 28. Qb3 {[%emt 0:00:21]} Nd5 {[%emt 0:01:30]} 29. Nc3 {[%emt 0:00:09]} Nxc3 {[%emt 0:04:01]} 30. Qxc3 {[%emt 0:00:05]} Nd8 {[%emt 0:00:39]} 31. Qb3 {[%emt 0:01:23]} c6 {[%emt 0:04:19]} 32. Rd1 {[%emt 0:00:44]} Nf7 {[%emt 0:01:27]} 33. Bc4 {[%emt 0:02:30]} Nd8 {[%emt 0:00:09]} 34. Rab1 {[%emt 0:00:12]} b5 {[%emt 0:00:30]} 35. Bf1 {[%emt 0:00:06]} Ra4 {[%emt 0:01:11]} 36. d5 {[%emt 0:00:35]} Rca8 {[%emt 0:02:08]} 37. dxc6 {[%emt 0:00:18]} Qc8 {[%emt 0:04:12]} 38. Bb2 {[%emt 0:00:14]} Bxb2 {[%emt 0:04:14]} 39. Rxb2 {[%emt 0:00:09]} R8a7 {[%emt 0:01:35]} 40. Qd5 {[%emt 0:00:00]} Nxc6 {[%emt 0:00:00]} 41. Rc2 {[%emt 0:07:50]} Nb4 {[%emt 0:09:44]} 42. Rxc8 {[%emt 0:00:25]} Nxd5 {[%emt 0:00:07]} 43. Rxd5 {[%emt 0:00:05]} b4 {[%emt 0:01:00]} 44. Rb8 {[%emt 0:01:45]} g5 {[%emt 0:01:48]} 45. Rxf5 {[%emt 0:00:30]} Rc7 {[%emt 0:00:38]} 46. Kg2 {[%emt 0:00:08]} g4 {[%emt 0:00:55]} 47. Be2 {[%emt 0:00:10]} Rc3 {[%emt 0:02:21]} 48. Bxg4 {[%emt 0:00:12]} b3 {[%emt 0:00:15]} 49. Rb7+ {[%emt 0:01:13]} Kg6 {[%emt 0:00:12]} 50. h4 {[%emt 0:00:28]} 1-0

[Event "European Womens-ch 2025"]
[Site "Rhodes"]
[Date "2025.04.04"]
[Round "5.53"]
[White "Heinatz, Gundula"]
[Black "Alexandri, Dimitra"]
[Result "1/2-1/2"]
[Annotator "ChessBase"]
[ECO "A30"]
[WhiteElo "2111"]
[BlackElo "1995"]
[PlyCount "94"]
[EventDate "2025.03.29"]
[EventType "swiss"]
[EventCountry "GRE"]
[SourceTitle "playchess.com"]
[Source "ChessBase"]
[SourceQuality "1"]
[TimeControl "40/5400+30:1800+30"]

1. d4 {[%emt 0:00:03]} Nf6 {[%emt 0:00:07]} 2. Nf3 {[%emt 0:00:04]} g6 {[%emt 0:00:09]} 3. Nbd2 {[%emt 0:00:09]} d5 {[%emt 0:01:26]} 4. b3 {[%emt 0:00:11]} Bg7 {[%emt 0:00:17]} 5. Bb2 {[%emt 0:00:06]} O-O {[%emt 0:01:56]} 6. e3 {[%emt 0:00:07]} b6 {[%emt 0:06:50]} 7. Be2 {[%emt 0:00:39]} Bb7 {[%emt 0:00:17]} 8. O-O {[%emt 0:00:13]} c5 {[%emt 0:03:57]} 9. c4 {[%emt 0:05:27]} cxd4 {[%emt 0:02:44]} 10. exd4 {[%emt 0:07:54]} Nc6 {[%emt 0:01:43]} 11. Rc1 {[%emt 0:02:59]} Rc8 {[%emt 0:03:48]} 12. Re1 {[%emt 0:04:06]} Rc7 {[%emt 0:10:17]} 13. Bf1 {[%emt 0:11:37]} Rd7 {[%emt 0:10:11]} 14. c5 {[%emt 0:11:25]} bxc5 {[%emt 0:24:29]} 15. Bb5 {[%emt 0:06:44]} Ne4 {[%emt 0:07:05]} 16. Ba3 {[%emt 0:09:40]} Qa5 {[%emt 0:07:01]} 17. Bxc6 {[%emt 0:00:50]} Bxc6 {[%emt 0:00:09]} 18. Bxc5 {[%emt 0:00:14]} Nxc5 {[%emt 0:11:50]} 19. Rxc5 {[%emt 0:00:35]} Qb6 {[%emt 0:00:18]} 20. Qc2 {[%emt 0:01:07]} Bb7 {[%emt 0:00:33]} 21. a4 {[%emt 0:06:29]} a6 {[%emt 0:02:39]} 22. h4 {[%emt 0:05:12]} Qb4 {[%emt 0:02:40]} 23. Qd3 {[%emt 0:07:38]} Rc8 {[%emt 0:00:44]} 24. Rec1 {[%emt 0:00:19]} Rdd8 {[%emt 0:00:45]} 25. Qe3 {[%emt 0:05:56]} Kf8 {[%emt 0:00:30]} 26. h5 {[%emt 0:00:38]} Rxc5 {[%emt 0:00:13]} 27. Rxc5 {[%emt 0:00:08]} Rc8 {[%emt 0:00:44]} 28. h6 {[%emt 0:01:12]} Bf6 {[%emt 0:00:17]} 29. Ne5 {[%emt 0:01:55]} Bxe5 {[%emt 0:00:47]} 30. Qxe5 {[%emt 0:03:01]} f6 {[%emt 0:00:25]} 31. Rxc8+ {[%emt 0:00:41]} Bxc8 {[%emt 0:00:01]} 32. Qe3 {[%emt 0:01:01]} Bf5 {[%emt 0:00:52]} 33. Nf3 {[%emt 0:02:30]} Kf7 {[%emt 0:00:19]} 34. Nd2 {[%emt 0:02:43]} a5 {[%emt 0:00:46]} 35. f3 {[%emt 0:00:24]} Bc2 {[%emt 0:00:35]} 36. Kh2 {[%emt 0:00:59]} Qb8+ {[%emt 0:00:26]} 37. Kh1 {[%emt 0:01:08]} Qg3 {[%emt 0:00:34]} 38. Nf1 {[%emt 0:01:14]} Qh4+ {[%emt 0:00:25]} 39. Kg1 {[%emt 0:00:07]} Bf5 {[%emt 0:00:34]} 40. Qd2 {[%emt 0:00:00]} Be6 {[%emt 0:00:00]} 41. b4 {[%emt 0:09:08]} axb4 {[%emt 0:08:23]} 42. Qxb4 {[%emt 0:02:40]} Qxh6 {[%emt 0:09:58]} 43. a5 {[%emt 0:00:36]} Qc1 {[%emt 0:01:37]} 44. a6 {[%emt 0:03:55]} Qa1 {[%emt 0:03:13]} 45. Qb6 {[%emt 0:04:44]} Bf5 {[%emt 0:01:15]} 46. a7 {[%emt 0:03:25]} Bd3 {[%emt 0:00:22]} 47. Qb8 {[%emt 0:03:40]} Qxf1+ {[%emt 0:03:20]} 1/2-1/2

[Event "European Womens-ch 2025"]
[Site "Rhodes"]
[Date "2025.04.04"]
[Round "5.54"]
[White "Sivanandan, Bodhana"]
[Black "Chasouraki, Chrysi"]
[Result "1/2-1/2"]
[Annotator "NA"]
[ECO "B40"]
[WhiteElo "2073"]
[BlackElo "1843"]
[PlyCount "123"]
[EventDate "2025.03.29"]
[EventType "swiss"]
[EventCountry "GRE"]
[SourceTitle "playchess.com"]
[Source "ChessBase"]
[SourceQuality "1"]
[TimeControl "40/5400+30:1800+30"]

1. e4 {[%emt 0:05:37]} c5 {[%emt 0:00:05]} 2. Nf3 {[%emt 0:00:22]} e6 {[%emt 0:00:05]} 3. g3 {[%emt 0:00:20]} d5 {[%emt 0:00:05]} 4. exd5 {[%emt 0:00:36]} exd5 {[%emt 0:00:03]} 5. d4 {[%emt 0:00:54]} cxd4 {[%emt 0:00:10]} 6. Nxd4 {[%emt 0:00:14]} Nc6 {[%emt 0:00:05]} 7. Be3 {[%emt 0:00:29]} Nf6 {[%emt 0:01:07]} 8. Bg2 {[%emt 0:00:26]} Bb4+ {[%emt 0:02:44]} 9. c3 {[%emt 0:00:40]} Ba5 {[%emt 0:01:01]} 10. O-O {[%emt 0:00:42]} O-O {[%emt 0:00:40]} 11. Nd2 {[%emt 0:01:21]} Re8 {[%emt 0:03:11]} 12. Re1 {[%emt 0:06:57]} Bb6 {[%emt 0:16:03]} 13. Qb3 {[%emt 0:09:04]} h6 {[%emt 0:09:58]} 14. Nf1 {[%emt 0:06:48]} Ne5 {[%emt 0:17:04]} 15. Nf3 {[%emt 0:07:32]} Bxe3 {[%emt 0:13:34]} 16. Rxe3 {[%emt 0:04:31]} Nfg4 {[%emt 0:07:55]} 17. Ree1 {[%emt 0:01:12]} Nd3 {[%emt 0:01:51]} 18. Rxe8+ {[%emt 0:12:00]} Qxe8 {[%emt 0:00:03]} 19. Qc2 {[%emt 0:01:20]} Ngxf2 {[%emt 0:03:36]} 20. Qd2 {[%emt 0:04:57]} Bh3 {[%emt 0:10:30]} 21. Bxh3 {[%emt 0:03:13]} Nxh3+ {[%emt 0:00:03]} 22. Kg2 {[%emt 0:00:15]} Nhf2 {[%emt 0:00:22]} 23. Ne3 {[%emt 0:11:59]} Qe4 {[%emt 0:02:21]} 24. Rf1 {[%emt 0:00:32]} Re8 {[%emt 0:00:49]} 25. Rxf2 {[%emt 0:00:21]} Qxe3 {[%emt 0:00:43]} 26. Qxe3 {[%emt 0:00:16]} Rxe3 {[%emt 0:00:02]} 27. Rd2 {[%emt 0:00:53]} Ne1+ {[%emt 0:03:53]} 28. Nxe1 {[%emt 0:01:26]} Rxe1 {[%emt 0:00:02]} 29. Kf2 {[%emt 0:00:31]} Re5 {[%emt 0:00:54]} 30. Rd4 {[%emt 0:01:42]} Kf8 {[%emt 0:03:24]} 31. Rb4 {[%emt 0:02:29]} b6 {[%emt 0:00:59]} 32. Rb5 {[%emt 0:03:04]} Ke7 {[%emt 0:01:09]} 33. a4 {[%emt 0:00:31]} Kd6 {[%emt 0:00:52]} 34. a5 {[%emt 0:00:12]} d4 {[%emt 0:01:19]} 35. Rb4 {[%emt 0:02:07]} Rxa5 {[%emt 0:00:44]} 36. Rxd4+ {[%emt 0:03:53]} Rd5 {[%emt 0:00:20]} 37. Rf4 {[%emt 0:00:09]} f6 {[%emt 0:00:30]} 38. Ke2 {[%emt 0:00:28]} Rb5 {[%emt 0:00:38]} 39. b4 {[%emt 0:03:56]} a5 {[%emt 0:00:27]} 40. bxa5 {[%emt 0:00:00]} Rxa5 {[%emt 0:00:00]} 41. Rd4+ {[%emt 0:06:06]} Rd5 {[%emt 0:06:43]} 42. Ra4 {[%emt 0:00:23]} Rh5 {[%emt 0:02:03]} 43. h4 {[%emt 0:01:21]} g5 {[%emt 0:01:08]} 44. Rd4+ {[%emt 0:02:26]} Kc5 {[%emt 0:01:18]} 45. Kd3 {[%emt 0:00:32]} gxh4 {[%emt 0:01:32]} 46. Rc4+ {[%emt 0:00:08]} Kd6 {[%emt 0:02:40]} 47. gxh4 {[%emt 0:00:22]} Re5 {[%emt 0:00:50]} 48. Rc8 {[%emt 0:12:21]} b5 {[%emt 0:02:06]} 49. Rd8+ {[%emt 0:03:15]} Ke7 {[%emt 0:02:23]} 50. Rd4 {[%emt 0:01:36]} Ke6 {[%emt 0:02:58]} 51. Rf4 {[%emt 0:00:51]} Kf7 {[%emt 0:04:18]} 52. Rg4 {[%emt 0:03:45]} f5 {[%emt 0:05:10]} 53. Rg1 {[%emt 0:01:05]} Re4 {[%emt 0:03:39]} 54. Rb1 {[%emt 0:00:08]} Rxh4 {[%emt 0:00:43]} 55. Rxb5 {[%emt 0:00:08]} f4 {[%emt 0:00:33]} 56. Ke4 {[%emt 0:00:08]} f3+ {[%emt 0:00:30]} 57. Kxf3 {[%emt 0:00:08]} Rh3+ {[%emt 0:00:04]} 58. Kg4 {[%emt 0:00:10]} Rxc3 {[%emt 0:00:08]} 59. Rb7+ {[%emt 0:00:06]} Kf6 {[%emt 0:01:15]} 60. Rb6+ {[%emt 0:00:20]} Kg7 {[%emt 0:00:26]} 61. Rb7+ {[%emt 0:00:21]} Kf6 {[%emt 0:00:12]} 62. Rb6+ {[%emt 0:00:15]} 1/2-1/2